[Event "Early-Titled-Tuesday-Blitz-September-26-2023"]
[Site "Chess.com"]
[Date "2023.09.26"]
[Round "1"]
[White "Dacean99"]
[Black "olakenn"]
[Result "1-0"]
[WhiteElo "2530"]
[BlackElo "1847"]
[TimeControl "180+1"]
[EndTime "8:01:27 PDT"]
[Termination "Dacean99 won by resignation"]

1. d4 {[%clk 0:03:00.9]} 1... Nf6 {[%clk 0:02:59.4]} 2. Nf3 {[%clk 0:03:00.2]}
2... d5 {[%clk 0:02:59.1]} 3. c4 {[%clk 0:03:00.1]} 3... c6 {[%clk 0:02:58.7]}
4. Nc3 {[%clk 0:03:00.2]} 4... g6 {[%clk 0:02:57.9]} 5. Bg5 {[%clk 0:02:58.6]}
5... Bg7 {[%clk 0:02:56.1]} 6. e3 {[%clk 0:02:45.6]} 6... O-O {[%clk 0:02:55.5]}
7. Rc1 {[%clk 0:02:38.9]} 7... Bg4 {[%clk 0:02:53.9]} 8. h3 {[%clk 0:02:37.8]}
8... Bxf3 {[%clk 0:02:53.3]} 9. Qxf3 {[%clk 0:02:38]} 9... dxc4 {[%clk
0:02:53.2]} 10. Bxc4 {[%clk 0:02:37.1]} 10... Nbd7 {[%clk 0:02:53.1]} 11. O-O
{[%clk 0:02:35.6]} 11... Nb6 {[%clk 0:02:51.8]} 12. Bb3 {[%clk 0:02:35.4]} 12...
Nbd5 {[%clk 0:02:51.1]} 13. e4 {[%clk 0:02:30.5]} 13... Nxc3 {[%clk 0:02:50.7]}
14. bxc3 {[%clk 0:02:31.4]} 14... Nd7 {[%clk 0:02:48]} 15. Rfe1 {[%clk
0:02:29.4]} 15... e6 {[%clk 0:02:47.6]} 16. Bxd8 {[%clk 0:02:29]} 1-0

[Event "Early-Titled-Tuesday-Blitz-September-26-2023"]
[Site "Chess.com"]
[Date "2023.09.26"]
[Round "1"]
[White "LileKoridze"]
[Black "CheckThis4"]
[Result "0-1"]
[WhiteElo "2377"]
[BlackElo "2681"]
[TimeControl "180+1"]
[EndTime "8:03:32 PDT"]
[Termination "CheckThis4 won by resignation"]

1. d4 {[%clk 0:03:00.9]} 1... Nf6 {[%clk 0:02:58]} 2. c4 {[%clk 0:03:00.9]} 2...
e5 {[%clk 0:02:58.1]} 3. dxe5 {[%clk 0:02:58.8]} 3... Ng4 {[%clk 0:02:58.2]} 4.
Bf4 {[%clk 0:02:58]} 4... Bb4+ {[%clk 0:02:57.7]} 5. Nd2 {[%clk 0:02:57.6]} 5...
d6 {[%clk 0:02:57.9]} 6. a3 {[%clk 0:02:41.2]} 6... dxe5 {[%clk 0:02:36.8]} 7.
Bg3 {[%clk 0:02:19.6]} 7... Bxd2+ {[%clk 0:02:29.7]} 8. Qxd2 {[%clk 0:02:19.1]}
8... Qxd2+ {[%clk 0:02:29.8]} 9. Kxd2 {[%clk 0:02:19.2]} 9... Nc6 {[%clk
0:02:29.3]} 10. e3 {[%clk 0:01:49.2]} 10... Bf5 {[%clk 0:02:26.4]} 11. h3 {[%clk
0:01:42]} 11... Nf6 {[%clk 0:02:16.2]} 12. f3 {[%clk 0:01:31.6]} 12... O-O-O+
{[%clk 0:02:12]} 13. Kc1 {[%clk 0:01:07.3]} 13... Na5 {[%clk 0:02:04.7]} 0-1

[Event "Early-Titled-Tuesday-Blitz-September-26-2023"]
[Site "Chess.com"]
[Date "2023.09.26"]
[Round "1"]
[White "Evgeny81"]
[Black "Predator0608"]
[Result "1-0"]
[WhiteElo "2759"]
[BlackElo "2453"]
[TimeControl "180+1"]
[EndTime "8:03:46 PDT"]
[Termination "Evgeny81 won by resignation"]

1. e4 {[%clk 0:03:00.9]} 1... c5 {[%clk 0:02:58.4]} 2. Nf3 {[%clk 0:03:00.9]}
2... d6 {[%clk 0:02:58.9]} 3. d4 {[%clk 0:03:01.1]} 3... cxd4 {[%clk 0:02:59.8]}
4. Nxd4 {[%clk 0:03:00.1]} 4... Nf6 {[%clk 0:03:00.7]} 5. Nc3 {[%clk 0:03:00.5]}
5... a6 {[%clk 0:03:01.2]} 6. Be3 {[%clk 0:02:59.4]} 6... e5 {[%clk 0:03:01.3]}
7. Nb3 {[%clk 0:02:57.5]} 7... Be6 {[%clk 0:03:00.3]} 8. Be2 {[%clk 0:02:56.8]}
8... Be7 {[%clk 0:03:00.4]} 9. O-O {[%clk 0:02:56.9]} 9... Nbd7 {[%clk
0:03:01.1]} 10. Re1 {[%clk 0:02:55.9]} 10... O-O {[%clk 0:03:01.8]} 11. a4
{[%clk 0:02:53.5]} 11... b6 {[%clk 0:03:02]} 12. Bf1 {[%clk 0:02:51]} 12... Nc5
{[%clk 0:02:59.5]} 13. Nxc5 {[%clk 0:02:47.7]} 13... dxc5 {[%clk 0:03:00.4]} 14.
Qxd8 {[%clk 0:02:44.9]} 14... Rfxd8 {[%clk 0:02:59.4]} 15. Rad1 {[%clk
0:02:43.8]} 15... Kf8 {[%clk 0:02:55.6]} 16. Rxd8+ {[%clk 0:02:42.4]} 16... Bxd8
{[%clk 0:02:56.5]} 17. a5 {[%clk 0:02:41.5]} 17... Bd7 {[%clk 0:02:26.8]} 18.
Rd1 {[%clk 0:02:33]} 18... Bc6 {[%clk 0:02:27.1]} 19. f3 {[%clk 0:02:03.7]}
19... Nd7 {[%clk 0:02:16.4]} 20. Rd6 {[%clk 0:01:54.3]} 20... Ke7 {[%clk
0:01:54.9]} 21. Rxc6 {[%clk 0:01:52.8]} 21... Nb8 {[%clk 0:01:54.4]} 22. Nd5+
{[%clk 0:01:52.3]} 22... Kd7 {[%clk 0:01:31.8]} 23. Rxb6 {[%clk 0:01:51.6]} 1-0

[Event "Early-Titled-Tuesday-Blitz-September-26-2023"]
[Site "Chess.com"]
[Date "2023.09.26"]
[Round "1"]
[White "SAInt_666"]
[Black "BeautiFullMindChess"]
[Result "1-0"]
[WhiteElo "2650"]
[BlackElo "2349"]
[TimeControl "180+1"]
[EndTime "8:04:10 PDT"]
[Termination "SAInt_666 won by resignation"]

1. e4 {[%clk 0:03:00.9]} 1... c5 {[%clk 0:02:59]} 2. Nf3 {[%clk 0:03:00.4]} 2...
d6 {[%clk 0:02:57.5]} 3. Bb5+ {[%clk 0:03:00.3]} 3... Bd7 {[%clk 0:02:57]} 4.
Bxd7+ {[%clk 0:03:00.2]} 4... Qxd7 {[%clk 0:02:57.9]} 5. O-O {[%clk 0:03:00.5]}
5... Nc6 {[%clk 0:02:57.6]} 6. c3 {[%clk 0:03:00.8]} 6... Nf6 {[%clk 0:02:57.1]}
7. d4 {[%clk 0:03:01.4]} 7... cxd4 {[%clk 0:02:55.7]} 8. cxd4 {[%clk 0:03:02.3]}
8... Nxe4 {[%clk 0:02:54.7]} 9. d5 {[%clk 0:03:02.4]} 9... Ne5 {[%clk
0:02:54.5]} 10. Re1 {[%clk 0:03:02.8]} 10... Nxf3+ {[%clk 0:02:52.5]} 11. Qxf3
{[%clk 0:03:03.7]} 11... Nf6 {[%clk 0:02:52]} 12. Nc3 {[%clk 0:02:53.4]} 12...
O-O-O {[%clk 0:02:41.8]} 13. Be3 {[%clk 0:02:46.1]} 13... Kb8 {[%clk 0:02:41.4]}
14. Qd1 {[%clk 0:02:23.4]} 14... g6 {[%clk 0:02:18.8]} 15. Qd4 {[%clk
0:02:19.6]} 15... b6 {[%clk 0:02:13.7]} 16. a4 {[%clk 0:02:19]} 16... Bg7 {[%clk
0:02:11.3]} 17. a5 {[%clk 0:02:19.1]} 17... b5 {[%clk 0:02:05.5]} 18. Nxb5
{[%clk 0:02:13.5]} 18... Nh5 {[%clk 0:01:36.1]} 19. Qb4 {[%clk 0:02:08.4]} 19...
Ka8 {[%clk 0:01:31.1]} 20. Nxa7 {[%clk 0:01:50.7]} 20... Rb8 {[%clk 0:01:30.1]}
21. Qc4 {[%clk 0:01:50.9]} 21... e6 {[%clk 0:01:15.3]} 22. Nc6 {[%clk
0:01:44.7]} 1-0

[Event "Early-Titled-Tuesday-Blitz-September-26-2023"]
[Site "Chess.com"]
[Date "2023.09.26"]
[Round "1"]
[White "Denis_Makhnyov"]
[Black "IamSchrodingersCat"]
[Result "1-0"]
[WhiteElo "2918"]
[BlackElo "2505"]
[TimeControl "180+1"]
[EndTime "8:04:14 PDT"]
[Termination "Denis_Makhnyov won by resignation"]

1. f4 {[%clk 0:03:00.9]} 1... Nc6 {[%clk 0:02:58.3]} 2. Nf3 {[%clk 0:03:00.8]}
2... d5 {[%clk 0:02:56.7]} 3. g3 {[%clk 0:03:01]} 3... g6 {[%clk 0:02:56.3]} 4.
Bg2 {[%clk 0:03:01.1]} 4... Bg7 {[%clk 0:02:56.8]} 5. O-O {[%clk 0:03:01.6]}
5... e5 {[%clk 0:02:54.8]} 6. fxe5 {[%clk 0:02:16.9]} 6... Nxe5 {[%clk
0:02:55.7]} 7. Nxe5 {[%clk 0:02:17.4]} 7... Bxe5 {[%clk 0:02:55.6]} 8. d4 {[%clk
0:02:18.1]} 8... Bg7 {[%clk 0:02:50.1]} 9. Nc3 {[%clk 0:02:18.6]} 9... Ne7
{[%clk 0:02:47.8]} 10. Bg5 {[%clk 0:02:17.3]} 10... Be6 {[%clk 0:02:42.3]} 11.
e4 {[%clk 0:02:08.7]} 11... dxe4 {[%clk 0:02:37.5]} 12. d5 {[%clk 0:02:09]}
12... Bf5 {[%clk 0:01:44.9]} 13. g4 {[%clk 0:02:08.1]} 13... Bc8 {[%clk
0:01:16.2]} 14. Nxe4 {[%clk 0:02:07.8]} 14... h6 {[%clk 0:00:28.8]} 15. Bf6
{[%clk 0:02:07.4]} 15... O-O {[%clk 0:00:27.5]} 16. Bxg7 {[%clk 0:02:06.6]} 1-0

[Event "Early-Titled-Tuesday-Blitz-September-26-2023"]
[Site "Chess.com"]
[Date "2023.09.26"]
[Round "1"]
[White "drdaro"]
[Black "LoaySameer"]
[Result "0-1"]
[WhiteElo "2276"]
[BlackElo "2604"]
[TimeControl "180+1"]
[EndTime "8:04:15 PDT"]
[Termination "LoaySameer won by resignation"]

1. Nf3 {[%clk 0:02:59.4]} 1... Nf6 {[%clk 0:02:59.7]} 2. c4 {[%clk 0:02:57.2]}
2... g6 {[%clk 0:03:00]} 3. b3 {[%clk 0:02:56.1]} 3... Bg7 {[%clk 0:03:00.3]} 4.
Bb2 {[%clk 0:02:57]} 4... O-O {[%clk 0:03:01.2]} 5. e3 {[%clk 0:02:57.9]} 5...
d6 {[%clk 0:03:01.4]} 6. Be2 {[%clk 0:02:57.2]} 6... e5 {[%clk 0:03:01.7]} 7.
O-O {[%clk 0:02:49.9]} 7... c6 {[%clk 0:03:00.9]} 8. Nc3 {[%clk 0:02:45.3]} 8...
Re8 {[%clk 0:02:57.3]} 9. e4 {[%clk 0:02:43.3]} 9... Nbd7 {[%clk 0:02:54.5]} 10.
Qc2 {[%clk 0:02:43.5]} 10... Nc5 {[%clk 0:02:54.4]} 11. b4 {[%clk 0:02:39.5]}
11... Ne6 {[%clk 0:02:54]} 12. g3 {[%clk 0:02:36.1]} 12... Nd4 {[%clk 0:02:53]}
13. Nxd4 {[%clk 0:02:35.3]} 13... exd4 {[%clk 0:02:53.3]} 14. Nd1 {[%clk
0:02:32.6]} 14... Nxe4 {[%clk 0:02:49.5]} 15. Bf3 {[%clk 0:02:32.2]} 15... Ng5
{[%clk 0:02:49.5]} 16. Bg2 {[%clk 0:02:30.8]} 16... Bh3 {[%clk 0:02:22]} 17. f4
{[%clk 0:02:27.1]} 17... Bxg2 {[%clk 0:02:22]} 18. Kxg2 {[%clk 0:02:27.6]} 18...
Ne4 {[%clk 0:01:58.9]} 19. Qd3 {[%clk 0:02:18]} 19... c5 {[%clk 0:01:55.2]} 20.
f5 {[%clk 0:02:17.9]} 20... d5 {[%clk 0:01:47.7]} 21. bxc5 {[%clk 0:02:11.5]}
21... Nxc5 {[%clk 0:01:45.8]} 22. Qa3 {[%clk 0:01:59.1]} 22... b6 {[%clk
0:01:39.3]} 23. Nf2 {[%clk 0:01:51.5]} 23... dxc4 {[%clk 0:01:37.3]} 24. Rac1
{[%clk 0:01:45.7]} 24... Qd5+ {[%clk 0:01:37.4]} 25. Kg1 {[%clk 0:01:44.4]}
25... Re2 {[%clk 0:01:33]} 26. Qb4 {[%clk 0:01:35.2]} 26... Nd3 {[%clk
0:01:22.8]} 0-1

[Event "Early-Titled-Tuesday-Blitz-September-26-2023"]
[Site "Chess.com"]
[Date "2023.09.26"]
[Round "1"]
[White "adapodadei"]
[Black "Shivananda1964"]
[Result "1-0"]
[WhiteElo "2725"]
[BlackElo "2424"]
[TimeControl "180+1"]
[EndTime "8:04:20 PDT"]
[Termination "adapodadei won by resignation"]

1. Nf3 {[%clk 0:03:00.9]} 1... Nf6 {[%clk 0:02:59.5]} 2. c4 {[%clk 0:03:00.7]}
2... Nc6 {[%clk 0:02:59.1]} 3. Nc3 {[%clk 0:02:57.6]} 3... e5 {[%clk 0:02:59.1]}
4. e4 {[%clk 0:02:57.9]} 4... Bb4 {[%clk 0:02:50.8]} 5. d3 {[%clk 0:02:55]} 5...
Bxc3+ {[%clk 0:02:46.8]} 6. bxc3 {[%clk 0:02:55]} 6... d6 {[%clk 0:02:47.2]} 7.
Be2 {[%clk 0:02:54.9]} 7... O-O {[%clk 0:02:47.3]} 8. O-O {[%clk 0:02:53.2]}
8... Qe7 {[%clk 0:02:47.9]} 9. Ne1 {[%clk 0:02:48.2]} 9... Ne8 {[%clk
0:02:28.4]} 10. Nc2 {[%clk 0:02:47.9]} 10... f5 {[%clk 0:02:28.3]} 11. exf5
{[%clk 0:02:48.1]} 11... Bxf5 {[%clk 0:02:27.7]} 12. Ne3 {[%clk 0:02:48.7]}
12... Be6 {[%clk 0:02:21.2]} 13. d4 {[%clk 0:02:48.3]} 13... Bd7 {[%clk
0:02:02.1]} 14. Rb1 {[%clk 0:02:46.4]} 14... b6 {[%clk 0:02:00.2]} 15. Nd5
{[%clk 0:02:24.2]} 15... Qd8 {[%clk 0:01:48.8]} 16. Be3 {[%clk 0:02:20.8]} 16...
Nf6 {[%clk 0:01:44.2]} 17. Bg5 {[%clk 0:02:18.2]} 17... Nxd5 {[%clk 0:01:09]}
18. Bxd8 {[%clk 0:02:10.4]} 18... Nxc3 {[%clk 0:01:08.9]} 19. Qe1 {[%clk
0:01:55.6]} 19... Nxe2+ {[%clk 0:01:06.3]} 20. Qxe2 {[%clk 0:01:56.5]} 20...
Nxd4 {[%clk 0:01:05.8]} 21. Qd2 {[%clk 0:01:50.2]} 21... Raxd8 {[%clk
0:01:03.8]} 22. f4 {[%clk 0:01:50.8]} 1-0

[Event "Early-Titled-Tuesday-Blitz-September-26-2023"]
[Site "Chess.com"]
[Date "2023.09.26"]
[Round "1"]
[White "DanielNaroditsky"]
[Black "Jaka_Brilej"]
[Result "1-0"]
[WhiteElo "3155"]
[BlackElo "2529"]
[TimeControl "180+1"]
[EndTime "8:04:29 PDT"]
[Termination "DanielNaroditsky won by resignation"]

1. e4 {[%clk 0:02:58.6]} 1... e6 {[%clk 0:02:52.8]} 2. d4 {[%clk 0:02:58.1]}
2... d5 {[%clk 0:02:50.6]} 3. Nd2 {[%clk 0:02:58.7]} 3... c5 {[%clk 0:02:47.7]}
4. Ngf3 {[%clk 0:02:58.9]} 4... cxd4 {[%clk 0:02:46.2]} 5. Nxd4 {[%clk
0:02:59.8]} 5... Nf6 {[%clk 0:02:46.1]} 6. exd5 {[%clk 0:02:58.2]} 6... Nxd5
{[%clk 0:02:44.5]} 7. N2f3 {[%clk 0:02:55.5]} 7... Bb4+ {[%clk 0:02:34.3]} 8.
Bd2 {[%clk 0:02:55.5]} 8... Bxd2+ {[%clk 0:02:31.6]} 9. Qxd2 {[%clk 0:02:54.9]}
9... O-O {[%clk 0:02:31.8]} 10. Be2 {[%clk 0:02:34.4]} 10... Nc6 {[%clk
0:02:23.7]} 11. Nxc6 {[%clk 0:02:34]} 11... bxc6 {[%clk 0:02:24.6]} 12. O-O
{[%clk 0:02:20.2]} 12... Qb6 {[%clk 0:02:21]} 13. c4 {[%clk 0:02:19.1]} 13...
Nf6 {[%clk 0:02:20.5]} 14. b4 {[%clk 0:02:03.2]} 14... c5 {[%clk 0:02:15.6]} 15.
b5 {[%clk 0:02:03.2]} 15... Bb7 {[%clk 0:02:07.6]} 16. a4 {[%clk 0:02:03.1]}
16... a5 {[%clk 0:02:07.8]} 17. bxa6 {[%clk 0:01:51]} 17... Qxa6 {[%clk
0:02:04.5]} 18. a5 {[%clk 0:01:48.8]} 18... Rfd8 {[%clk 0:02:01.6]} 19. Qe3
{[%clk 0:01:46.6]} 19... Rac8 {[%clk 0:01:47.9]} 20. Rfb1 {[%clk 0:01:38.5]}
20... Bxf3 {[%clk 0:01:40.2]} 21. Bxf3 {[%clk 0:01:34.8]} 21... Rb8 {[%clk
0:01:40.6]} 22. Rxb8 {[%clk 0:01:28.5]} 22... Rxb8 {[%clk 0:01:40.1]} 23. Qxc5
{[%clk 0:01:29.2]} 23... Nd7 {[%clk 0:01:33.8]} 24. Qc7 {[%clk 0:01:25.9]} 24...
Qc8 {[%clk 0:01:15.3]} 25. Qxc8+ {[%clk 0:01:25.6]} 25... Rxc8 {[%clk
0:01:16.2]} 26. a6 {[%clk 0:01:20.4]} 1-0

[Event "Early-Titled-Tuesday-Blitz-September-26-2023"]
[Site "Chess.com"]
[Date "2023.09.26"]
[Round "1"]
[White "toniv1"]
[Black "JiaHaoxiang"]
[Result "0-1"]
[WhiteElo "2343"]
[BlackElo "2646"]
[TimeControl "180+1"]
[EndTime "8:04:37 PDT"]
[Termination "JiaHaoxiang won by resignation"]

1. e4 {[%clk 0:02:58.6]} 1... c5 {[%clk 0:02:49.3]} 2. Nc3 {[%clk 0:02:56.5]}
2... Nc6 {[%clk 0:02:48.9]} 3. Bb5 {[%clk 0:02:56.3]} 3... Nd4 {[%clk
0:02:48.1]} 4. Nf3 {[%clk 0:02:56.7]} 4... g6 {[%clk 0:02:42.7]} 5. Nxd4 {[%clk
0:02:52.7]} 5... cxd4 {[%clk 0:02:42.2]} 6. Ne2 {[%clk 0:02:52.7]} 6... Bg7
{[%clk 0:02:39.7]} 7. O-O {[%clk 0:02:51.9]} 7... a6 {[%clk 0:02:39.8]} 8. Bd3
{[%clk 0:02:48.4]} 8... e6 {[%clk 0:02:38.4]} 9. c3 {[%clk 0:02:48.5]} 9... dxc3
{[%clk 0:02:33.8]} 10. bxc3 {[%clk 0:02:49.4]} 10... Ne7 {[%clk 0:02:33.6]} 11.
Bc2 {[%clk 0:02:43]} 11... O-O {[%clk 0:02:33.3]} 12. d4 {[%clk 0:02:43.6]}
12... d5 {[%clk 0:02:33.5]} 13. Ba3 {[%clk 0:02:41.8]} 13... Re8 {[%clk
0:02:31.7]} 14. Rb1 {[%clk 0:02:33.5]} 14... Qc7 {[%clk 0:02:18.9]} 15. Bc5
{[%clk 0:02:24.5]} 15... Bd7 {[%clk 0:02:17.8]} 16. a4 {[%clk 0:02:17.1]} 16...
dxe4 {[%clk 0:02:09.9]} 17. Bxe4 {[%clk 0:02:11.9]} 17... Bc6 {[%clk 0:02:10.4]}
18. Ng3 {[%clk 0:02:04.9]} 18... Nd5 {[%clk 0:02:07.2]} 19. Qf3 {[%clk
0:01:31.2]} 19... b5 {[%clk 0:02:03.1]} 20. axb5 {[%clk 0:01:25.5]} 20... axb5
{[%clk 0:02:02.9]} 21. Rfc1 {[%clk 0:01:24.7]} 21... f5 {[%clk 0:01:55.7]} 22.
Bc2 {[%clk 0:01:10.4]} 22... Nb4 {[%clk 0:01:52.4]} 23. Qe2 {[%clk 0:01:09.9]}
23... Nxc2 {[%clk 0:01:52.2]} 24. Qxc2 {[%clk 0:01:10]} 24... e5 {[%clk
0:01:51.3]} 25. c4 {[%clk 0:01:08.6]} 25... exd4 {[%clk 0:01:42.3]} 26. cxb5
{[%clk 0:01:07.7]} 26... Bd5 {[%clk 0:01:42.8]} 27. b6 {[%clk 0:01:05.4]} 27...
Qb7 {[%clk 0:01:43.2]} 28. f3 {[%clk 0:01:05.4]} 28... Ra2 {[%clk 0:01:41.9]}
29. Rb2 {[%clk 0:01:03.8]} 29... d3 {[%clk 0:01:41.6]} 0-1

[Event "Early-Titled-Tuesday-Blitz-September-26-2023"]
[Site "Chess.com"]
[Date "2023.09.26"]
[Round "1"]
[White "Mystery2007"]
[Black "Dedic8"]
[Result "1-0"]
[WhiteElo "2499"]
[BlackElo "2813"]
[TimeControl "180+1"]
[EndTime "8:04:42 PDT"]
[Termination "Mystery2007 won by checkmate"]

1. e4 {[%clk 0:03:00.9]} 1... e5 {[%clk 0:02:59.7]} 2. Nf3 {[%clk 0:03:00.8]}
2... Nc6 {[%clk 0:02:59.5]} 3. Bc4 {[%clk 0:03:01.1]} 3... Nf6 {[%clk
0:02:59.8]} 4. Ng5 {[%clk 0:02:58.9]} 4... d5 {[%clk 0:02:59.4]} 5. exd5 {[%clk
0:02:59.1]} 5... Na5 {[%clk 0:02:59.7]} 6. Bb5+ {[%clk 0:02:58.7]} 6... c6
{[%clk 0:03:00]} 7. dxc6 {[%clk 0:02:58.9]} 7... bxc6 {[%clk 0:03:00.6]} 8. Bd3
{[%clk 0:02:57.3]} 8... Nd5 {[%clk 0:02:52.4]} 9. h4 {[%clk 0:02:56.7]} 9... Be7
{[%clk 0:02:41.4]} 10. Nf3 {[%clk 0:01:32.7]} 10... O-O {[%clk 0:02:28.3]} 11.
Nc3 {[%clk 0:01:20.4]} 11... Bd6 {[%clk 0:02:21.6]} 12. Nxd5 {[%clk 0:00:53.1]}
12... cxd5 {[%clk 0:02:21.6]} 13. Bxh7+ {[%clk 0:00:52.5]} 13... Kxh7 {[%clk
0:02:21.1]} 14. Ng5+ {[%clk 0:00:52.8]} 14... Kg8 {[%clk 0:02:21.6]} 15. Qh5
{[%clk 0:00:50.1]} 15... Bf5 {[%clk 0:02:21.9]} 16. d3 {[%clk 0:00:34.1]} 16...
e4 {[%clk 0:02:22.2]} 17. dxe4 {[%clk 0:00:24.1]} 17... dxe4 {[%clk 0:02:22.6]}
18. O-O {[%clk 0:00:24.6]} 18... Qf6 {[%clk 0:02:11.8]} 19. Bd2 {[%clk
0:00:19.7]} 19... Nc4 {[%clk 0:02:04.6]} 20. Bc3 {[%clk 0:00:20.1]} 20... Be5
{[%clk 0:02:05.1]} 21. Bxe5 {[%clk 0:00:18.6]} 21... Nxe5 {[%clk 0:02:06]} 22.
Rfe1 {[%clk 0:00:17.5]} 22... Bg4 {[%clk 0:02:05.5]} 23. Qh7# {[%clk 0:00:13.7]}
1-0

[Event "Early-Titled-Tuesday-Blitz-September-26-2023"]
[Site "Chess.com"]
[Date "2023.09.26"]
[Round "1"]
[White "LionTheLeon_06"]
[Black "Cheer_Down"]
[Result "1-0"]
[WhiteElo "2817"]
[BlackElo "2475"]
[TimeControl "180+1"]
[EndTime "8:04:42 PDT"]
[Termination "LionTheLeon_06 won by resignation"]

1. e4 {[%clk 0:03:00.9]} 1... c5 {[%clk 0:02:59.9]} 2. Nf3 {[%clk 0:03:01.1]}
2... d6 {[%clk 0:02:58.8]} 3. d4 {[%clk 0:02:59.3]} 3... cxd4 {[%clk 0:02:59]}
4. Nxd4 {[%clk 0:03:00.2]} 4... Nf6 {[%clk 0:02:59.5]} 5. Nc3 {[%clk 0:03:00.4]}
5... a6 {[%clk 0:02:59.7]} 6. a4 {[%clk 0:02:58.5]} 6... e5 {[%clk 0:02:53.7]}
7. Nf3 {[%clk 0:02:58.6]} 7... Be7 {[%clk 0:02:50.2]} 8. Bg5 {[%clk 0:02:49.3]}
8... Be6 {[%clk 0:02:46.4]} 9. Bxf6 {[%clk 0:02:48.1]} 9... Bxf6 {[%clk
0:02:46.1]} 10. Nd5 {[%clk 0:02:48.5]} 10... O-O {[%clk 0:02:38.4]} 11. Bc4
{[%clk 0:02:45.2]} 11... Nc6 {[%clk 0:02:26.3]} 12. O-O {[%clk 0:02:40.8]} 12...
Rc8 {[%clk 0:02:25.7]} 13. Ba2 {[%clk 0:02:35.4]} 13... Ne7 {[%clk 0:02:11.4]}
14. c3 {[%clk 0:02:34.9]} 14... Nxd5 {[%clk 0:02:02.6]} 15. Bxd5 {[%clk
0:02:34.9]} 15... Bxd5 {[%clk 0:02:00.4]} 16. Qxd5 {[%clk 0:02:34.4]} 16... Qc7
{[%clk 0:01:59.1]} 17. Rfd1 {[%clk 0:02:32.7]} 17... Rfd8 {[%clk 0:01:58.3]} 18.
Ne1 {[%clk 0:02:15]} 18... Bg5 {[%clk 0:01:36.5]} 19. Nc2 {[%clk 0:02:14.5]}
19... Qb6 {[%clk 0:01:34.1]} 20. Qa2 {[%clk 0:01:56.1]} 20... a5 {[%clk
0:01:15.6]} 21. Rd3 {[%clk 0:01:45.2]} 21... Qc6 {[%clk 0:01:14.3]} 22. Rd5
{[%clk 0:01:41.9]} 22... b6 {[%clk 0:01:09]} 23. Na3 {[%clk 0:01:38.8]} 23... g6
{[%clk 0:01:07.3]} 24. Nb5 {[%clk 0:01:38.6]} 24... Rd7 {[%clk 0:01:05]} 25.
Rad1 {[%clk 0:01:38.6]} 25... Rcd8 {[%clk 0:01:04.9]} 26. g3 {[%clk 0:01:37.4]}
26... Kg7 {[%clk 0:01:04.8]} 27. Kg2 {[%clk 0:01:37.6]} 27... h5 {[%clk
0:01:03]} 28. h4 {[%clk 0:01:36.8]} 28... Bh6 {[%clk 0:01:03.2]} 29. Qb3 {[%clk
0:01:37.1]} 29... Qc5 {[%clk 0:01:02.8]} 30. Rxc5 {[%clk 0:01:36.7]} 1-0

[Event "Early-Titled-Tuesday-Blitz-September-26-2023"]
[Site "Chess.com"]
[Date "2023.09.26"]
[Round "1"]
[White "vovachesss"]
[Black "Smile2005"]
[Result "1-0"]
[WhiteElo "2733"]
[BlackElo "2432"]
[TimeControl "180+1"]
[EndTime "8:04:43 PDT"]
[Termination "vovachesss won by checkmate"]

1. e4 {[%clk 0:02:58.2]} 1... c5 {[%clk 0:02:58.9]} 2. Nf3 {[%clk 0:02:57.8]}
2... d6 {[%clk 0:02:56]} 3. d4 {[%clk 0:02:57.6]} 3... cxd4 {[%clk 0:02:55.9]}
4. Nxd4 {[%clk 0:02:58.5]} 4... Nf6 {[%clk 0:02:56.6]} 5. Nc3 {[%clk 0:02:58.9]}
5... a6 {[%clk 0:02:56.8]} 6. Rg1 {[%clk 0:02:58.7]} 6... e5 {[%clk 0:02:55.9]}
7. Nb3 {[%clk 0:02:58.7]} 7... h5 {[%clk 0:02:55.9]} 8. h3 {[%clk 0:02:58.2]}
8... Nc6 {[%clk 0:02:53.4]} 9. Be3 {[%clk 0:02:57.1]} 9... Be6 {[%clk
0:02:53.1]} 10. Qf3 {[%clk 0:02:56.7]} 10... Be7 {[%clk 0:02:52.6]} 11. O-O-O
{[%clk 0:02:55.3]} 11... Qc7 {[%clk 0:02:51.3]} 12. g4 {[%clk 0:02:50.9]} 12...
hxg4 {[%clk 0:02:51.1]} 13. hxg4 {[%clk 0:02:51.8]} 13... b5 {[%clk 0:02:45.6]}
14. g5 {[%clk 0:02:50.4]} 14... Nd7 {[%clk 0:02:45.6]} 15. g6 {[%clk 0:02:45]}
15... f6 {[%clk 0:02:39.7]} 16. Kb1 {[%clk 0:02:34.3]} 16... Nb6 {[%clk
0:02:33.3]} 17. Nd5 {[%clk 0:02:13.2]} 17... Bxd5 {[%clk 0:02:29.1]} 18. exd5
{[%clk 0:02:13.4]} 18... Nb4 {[%clk 0:02:28.8]} 19. c3 {[%clk 0:02:09.2]} 19...
N4xd5 {[%clk 0:02:07.4]} 20. Rxd5 {[%clk 0:02:06.5]} 20... Nxd5 {[%clk 0:02:04]}
21. Qxd5 {[%clk 0:02:07.4]} 21... O-O-O {[%clk 0:01:44.8]} 22. Qa8+ {[%clk
0:02:01.1]} 22... Kd7 {[%clk 0:01:44.8]} 23. Qxa6 {[%clk 0:02:02]} 23... Bf8
{[%clk 0:01:38.4]} 24. Bxb5+ {[%clk 0:01:57.6]} 24... Ke7 {[%clk 0:01:38]} 25.
Bb6 {[%clk 0:01:56.9]} 25... Qc8 {[%clk 0:01:32]} 26. Bxd8+ {[%clk 0:01:51.4]}
26... Kxd8 {[%clk 0:01:32.1]} 27. Qb6+ {[%clk 0:01:36.3]} 27... Ke7 {[%clk
0:01:31.4]} 28. Qa7+ {[%clk 0:01:34.5]} 28... Kd8 {[%clk 0:01:27.3]} 29. Na5
{[%clk 0:01:25.9]} 29... Qf5+ {[%clk 0:01:23]} 30. Ka1 {[%clk 0:01:25.9]} 30...
Qg4 {[%clk 0:01:20.4]} 31. Nc6+ {[%clk 0:01:24.2]} 31... Kc8 {[%clk 0:01:18.3]}
32. Ba6# {[%clk 0:01:24]} 1-0